bitfinex-derivatives/quotes_ETHF0:USTF0_20250926
["timestamp","ask_amount","ask_price","bid_price","bid_amount"]
[1758848863075,1.51999452,3931.0,3930.9,0.277]
[1758848864475,1.06236452,3931.0,3930.9,0.277]
[1758848864976,1.51999452,3931.0,3930.9,0.277]
[1758848865177,1.06236452,3931.0,3930.9,0.277]
[1758848865975,1.06236452,3931.0,3929.8,0.271]
[1758848865976,0.3599,3930.4,3929.4,0.271]
[1758848866174,0.1434,3930.5,3929.5,0.277]
[1758848866175,0.3599,3930.2,3929.5,0.277]
[1758848866483,0.1434,3930.5,3929.5,0.277]
[1758848866484,0.5033,3930.0,3929.5,0.277]
[1758848867279,0.3599,3929.9,3929.5,0.277]
[1758848867679,0.5583036,3929.8,3929.5,0.277]
[1758848867981,0.3599,3929.8,3929.5,0.277]
[1758848868172,0.45776,3929.9,3929.5,0.277]
[1758848868373,0.3599,3929.7,3929.5,0.277]
[1758848868568,0.3599,3929.9,3929.5,0.277]
[1758848868773,0.3599,3929.9,3929.7,0.271]
[1758848869074,0.3599,3929.9,3929.7,0.72877]
[1758848869271,0.3599,3929.9,3929.7,0.271]
[1758848869473,0.3599,3929.9,3929.6,0.45778]
[1758848869673,0.1434,3930.0,3929.6,0.45778]
[1758848869978,0.1434,3930.0,3929.5,0.73479]
[1758848870279,0.3599,3930.4,3930.1,0.45772]
[1758848870481,0.3599,3930.2,3930.1,0.73473]
[1758848871787,0.3599,3930.2,3930.1,0.277]
[1758848872580,0.1434,3930.0,3929.5,0.4578]
[1758848872775,0.1434,3930.0,3929.7,0.73478]
[1758848872980,0.3599,3929.9,3929.8,0.45776]
[1758848874072,0.3599,3929.9,3929.7,0.277]
[1758848875675,0.81766,3929.9,3929.7,0.277]
[1758848876384,0.81766,3929.9,3929.2,0.73483]
[1758848876385,0.3599,3929.8,3929.2,0.73483]
[1758848876778,0.45776,3929.9,3929.2,0.73483]
[1758848876981,0.1434,3930.0,3929.2,0.73483]
[1758848876982,0.3599,3929.7,3929.2,0.73483]
[1758848877299,0.3599,3929.4,3929.2,0.73483]
[1758848877488,0.1434,3929.5,3929.2,0.73483]
[1758848877694,0.3599,3929.4,3929.2,0.73483]
[1758848877880,0.3599,3929.4,3929.3,0.45782]
[1758848878388,0.5033,3930.0,3929.3,0.271]
[1758848878589,0.3599,3930.0,3929.8,0.72876]
[1758848878791,0.4577,3930.4,3929.8,0.45776]
[1758848878981,0.1434,3930.0,3929.8,0.45776]
[1758848879185,0.1434,3930.0,3929.0,1.21545]
[1758848879186,0.96128,3928.0,3927.4,1.80102235]
[1758848879488,0.96128,3928.0,3926.5,0.0708]
[1758848879489,0.3599,3927.4,3926.5,0.271]
[1758848879691,0.1434,3927.5,3926.9,0.4581]
[1758848879987,0.1434,3927.5,3926.6,0.45813]
[1758848880288,0.3597,3927.4,3926.8,0.45811]
[1758848880490,0.3597,3927.4,3927.0,0.45808]
[1758848880687,0.3597,3927.4,3927.0,0.76178]
[1758848880893,0.3597,3927.4,3926.8,0.45812]
[1758848881385,0.60145,3927.5,3926.9,0.45809]
[1758848881590,0.3597,3927.4,3926.9,0.45809]
[1758848881789,0.3597,3927.4,3927.2,0.45806]
[1758848882085,0.3597,3927.4,3926.5,41.1037]
[1758848882086,0.81775,3927.4,3926.5,41.1037]
[1758848882279,0.3597,3927.3,3926.5,41.1037]
[1758848882587,0.3597,3927.3,3926.7,0.45812]
[1758848882784,0.3597,3927.3,3925.1,39.686]
[1758848882785,0.1449,3926.5,3925.1,39.686]
[1758848883091,0.3597,3926.4,3925.9,0.45822]
[1758848883387,0.5046,3926.5,3925.8,0.76193]
[1758848883793,0.3713,3926.4,3926.0,0.45821]
[1758848883993,0.3713,3926.4,3925.8,0.76192]
[1758848884299,0.3713,3926.4,3926.0,0.76061]
[1758848884596,0.3713,3926.4,3925.6,0.277]
[1758848884784,0.3713,3926.4,3925.7,0.45824]
[1758848885287,0.82947,3926.4,3925.7,0.45824]
[1758848885691,0.4582,3926.2,3925.6,41.077]
[1758848885990,0.151,3926.0,3925.6,41.077]
[1758848886190,0.45818,3926.3,3925.6,41.83766]
[1758848886494,0.45819,3926.2,3925.6,0.5794]
[1758848886691,0.3713,3926.4,3925.6,0.277]
[1758848886992,0.3713,3926.9,3926.4,0.45815]
[1758848887197,0.3713,3927.4,3926.7,0.3024]
[1758848887490,0.60144,3927.5,3926.0,0.73521]
[1758848887491,0.151,3926.5,3926.0,0.73521]
[1758848887690,0.3713,3926.4,3926.0,0.277]
[1758848888192,0.151,3926.5,3926.0,0.277]
[1758848888390,0.5223,3927.0,3926.5,0.45815]
[1758848888594,0.151,3927.0,3926.5,0.76055]
[1758848888892,0.45814,3926.7,3926.1,0.45819]
[1758848889095,0.3713,3926.9,3926.2,0.45818]
[1758848889290,0.6091,3927.0,3926.0,0.5794]
[1758848889291,0.3713,3926.7,3926.3,0.45816]
[1758848889494,0.151,3927.0,3926.0,0.277]
[1758848889698,0.151,3927.0,3925.5,5.39072778]
[1758848889699,0.82947,3926.4,3925.6,0.277]
[1758848889991,0.45819,3926.2,3925.6,41.53525]
[1758848890192,0.151,3926.0,3925.6,41.077]
[1758848890493,0.151,3926.0,3925.6,0.277]
[1758848890694,0.151,3926.5,3925.6,0.277]
[1758848890695,0.3713,3926.3,3925.7,0.3024]
[1758848891289,0.151,3926.5,3925.8,0.3024]
[1758848891493,0.60916,3926.5,3926.1,0.3024]
[1758848891797,0.60916,3926.5,3925.6,0.73525]
[1758848891798,0.3713,3926.2,3925.6,0.73525]
[1758848893002,0.3713,3926.4,3925.6,0.277]
[1758848893497,0.82947,3926.4,3925.8,0.45822]
[1758848893697,0.3713,3926.4,3925.9,0.45821]
[1758848893902,0.60916,3926.5,3925.9,0.45821]
[1758848894102,0.3713,3926.3,3925.9,0.45821]
[1758848894299,0.3713,3926.2,3925.9,0.45821]
[1758848894503,0.3713,3926.2,3926.0,0.3024]
[1758848894802,0.60921,3926.0,3925.6,0.277]
[1758848895003,0.82947,3926.4,3925.8,0.45822]
[1758848895198,0.3713,3926.3,3926.0,0.3024]
[1758848895589,0.3713,3926.2,3926.0,0.3024]
[1758848896502,0.3713,3926.4,3925.6,0.277]
[1758848896803,0.151,3926.5,3925.6,0.277]
[1758848896804,0.3713,3926.2,3925.6,0.277]
[1758848897004,0.3713,3926.4,3925.3,0.45828]
[1758848897304,0.151,3926.5,3925.3,0.45828]
[1758848897305,0.3713,3926.2,3925.3,0.45828]
[1758848897503,0.3713,3925.3,3925.2,0.277]
[1758848898397,0.151,3926.0,3925.3,0.76069]
[1758848898398,0.3713,3925.9,3925.3,0.76069]
[1758848898697,0.3713,3926.4,3925.3,0.3024]
[1758848898897,0.45817,3926.4,3926.0,0.7606]
[1758848899102,0.3713,3926.3,3926.0,0.7606]
[1758848899305,0.3713,3926.2,3925.7,0.45823]
[1758848899499,0.151,3926.5,3925.2,0.277]
[1758848899500,0.151,3925.5,3925.2,0.277]
[1758848899702,0.3713,3925.4,3925.2,0.73529]
[1758848900004,0.98052,3926.0,3925.2,0.5794]
[1758848900394,0.60922,3926.0,3925.6,0.45825]
[1758848900706,0.3713,3925.9,3925.7,0.45823]
[1758848900902,0.151,3926.5,3925.7,0.45823]
[1758848900903,0.82948,3926.3,3925.7,0.76063]
[1758848901201,0.8295,3926.2,3925.7,0.3024]
[1758848901400,0.8295,3926.2,3925.2,0.277]
[1758848901401,0.3713,3926.0,3925.2,1.03769]
[1758848901703,0.3713,3926.0,3925.8,0.45823]
[1758848902105,0.3713,3926.5,3926.2,0.45818]
[1758848902300,0.3713,3926.6,3926.2,0.76058]
[1758848902607,0.3713,3926.4,3926.2,0.76058]
[1758848902904,0.3713,3926.6,3926.2,0.45818]
[1758848903111,0.3713,3926.4,3926.2,0.45818]
[1758848903405,0.3713,3926.4,3926.2,0.76058]
[1758848903806,0.3713,3926.9,3926.7,0.45812]
[1758848904009,0.3713,3927.1,3926.9,0.45809]
[1758848904203,0.93512876,3927.0,3926.9,0.45809]
[1758848904504,0.71482876,3927.0,3926.1,40.8]
[1758848904705,0.93512876,3926.9,3926.2,0.45818]
[1758848904900,0.3713,3926.7,3926.2,0.45818]
[1758848905100,0.3713,3926.4,3926.2,0.45818]
[1758848905503,0.45817,3926.4,3926.0,41.53521]
[1758848905903,0.151,3926.5,3926.0,41.53521]
[1758848905904,0.56256182,3926.3,3926.0,41.077]
[1758848906107,0.3713,3926.1,3926.0,0.277]
[1758848906306,0.93388237,3926.1,3926.0,0.277]
[1758848907404,0.45823,3925.9,3924.6,5.36426066]
[1758848907610,0.45823,3925.9,3925.4,0.45827]
[1758848907611,0.56258237,3925.8,3925.4,0.45827]
[1758848907806,0.56258237,3925.8,3925.5,0.45826]
[1758848908006,0.56258237,3925.7,3925.5,0.45826]
[1758848908308,0.56258237,3925.6,3925.5,0.76066]
[1758848908810,0.3713,3926.2,3926.0,0.4582]
[1758848909007,0.56233714,3926.1,3926.0,0.4582]
[1758848909203,0.56233714,3926.1,3926.0,0.2099147]
[1758848909408,0.56233714,3926.1,3925.9,0.277]
[1758848909609,1.08463714,3926.0,3925.9,0.277]
[1758848912410,0.5088,3925.5,3925.3,0.45828]
[1758848912609,0.92713714,3925.4,3925.3,0.73528]
[1758848912804,0.92713714,3925.4,3925.3,0.277]
[1758848913512,5.92713714,3925.4,3925.3,0.277]
[1758848913709,0.92713714,3925.4,3925.3,0.277]
[1758848914619,0.56233714,3925.4,3924.6,40.8]
[1758848914829,0.144,3925.0,3924.6,40.8]
[1758848915116,0.56233714,3924.9,3924.6,40.8]
[1758848915317,0.3648,3924.7,3924.6,40.8]
[1758848915504,0.92713714,3924.7,3924.6,40.8]
[1758848916213,0.3648,3924.6,3924.5,0.277]
[1758848916417,0.92713714,3924.6,3924.5,0.277]
[1758848918316,0.92713714,3924.6,3923.9,0.04725443]
[1758848918317,0.3648,3924.4,3924.0,0.73544]
[1758848918513,0.92713714,3924.3,3924.2,0.45842]
[1758848919518,0.56233714,3924.3,3924.2,5.54598315]
[1758848919820,0.56233714,3924.3,3924.0,0.277]
[1758848919821,0.3648,3924.2,3924.1,0.45843]
[1758848920113,0.56233714,3924.2,3924.1,41.82813]
[1758848920808,0.3648,3924.7,3924.6,0.45837]
[1758848921011,0.55619889,3924.7,3924.6,0.75107]
[1758848921414,0.55619889,3924.7,3924.5,0.277]
[1758848921615,0.92099889,3924.6,3924.5,0.277]
[1758848921818,0.5088,3924.5,3924.4,0.45839]
[1758848922121,1.06499889,3924.5,3924.4,0.277]
[1758848925719,0.144,3924.0,3923.9,0.50570443]
[1758848925922,0.5088,3924.0,3923.9,0.78270443]
[1758848926424,0.5088,3924.0,3923.9,0.32425443]
[1758848928119,0.3648,3923.4,3923.3,0.45853]
[1758848928314,0.3648,3923.4,3923.3,5.53039315]
[1758848928520,0.5088,3924.0,3923.9,0.45846]
[1758848928719,1.06118606,3924.0,3923.9,0.45846]
[1758848929222,0.69638606,3924.0,3923.7,0.45847]
[1758848929416,0.3648,3923.9,3923.7,0.45847]
[1758848929720,0.3648,3923.9,3923.8,0.45846]
[1758848930625,0.3648,3924.4,3924.2,0.45841]
[1758848930819,0.144,3924.5,3924.2,0.75111]
[1758848930820,0.5521209,3924.3,3924.2,0.75111]
[1758848931021,0.3648,3924.9,3924.5,0.45838]
[1758848931322,0.3648,3924.7,3924.6,0.73537]
[1758848931523,0.91683489,3924.7,3924.6,0.73537]
[1758848932227,0.91683489,3924.7,3924.6,0.277]
[1758848932834,0.0254,3925.4,3925.3,0.75099]
[1758848933123,0.144,3926.5,3925.3,0.75099]
[1758848933124,0.3648,3926.4,3925.6,0.45826]
[1758848933314,0.5088,3926.0,3925.9,4.79486315]
[1758848934317,0.5088,3926.0,3925.9,5.53008315]
[1758848934523,0.3648,3926.0,3925.9,5.53008315]
[1758848935626,0.5088,3926.0,3925.9,5.53008315]
[1758848936029,0.5088,3926.0,3925.9,0.277]
[1758848936227,0.5088,3926.0,3925.9,0.73522]
[1758848936422,0.5088,3926.0,3925.9,0.277]
[1758848936725,0.5088,3926.0,3925.3,40.8]
[1758848936726,0.3648,3925.4,3925.3,0.45829]
[1758848936925,0.3648,3925.4,3925.3,0.73529]
[1758848937821,0.144,3926.0,3925.8,0.45822]
[1758848938418,0.144,3926.0,3925.6,0.277]
[1758848938419,0.3648,3925.9,3925.6,0.73525]
[1758848938617,0.3648,3925.9,3925.7,0.45824]
[1758848938827,0.3648,3925.9,3925.8,0.45822]
[1758848939124,0.3648,3926.4,3926.3,0.45817]
[1758848939431,0.3648,3926.4,3926.0,0.277]
[1758848939820,5.3648,3926.4,3926.0,0.277]
[1758848940416,5.0,3926.3,3925.6,0.73526]
[1758848940629,0.3521,3925.9,3925.6,0.73526]
[1758848940925,0.1419,3926.0,3925.8,0.45823]
[1758848941127,0.3521,3925.9,3925.8,0.45823]
[1758848942022,0.3521,3925.9,3925.8,0.73523]
[1758848942228,0.3521,3926.4,3926.3,0.45817]
[1758848942525,0.3521,3926.4,3926.1,0.4582]
[1758848942729,0.144,3926.5,3926.1,0.4582]
[1758848943426,0.3521,3926.4,3926.1,0.4582]
[1758848943628,0.144,3926.5,3926.1,0.4582]
[1758848943827,0.144,3926.5,3925.1,46.74064315]
[1758848943828,0.1541,3926.0,3925.7,0.45824]
[1758848944019,0.1541,3926.0,3925.3,0.73528]
[1758848944020,0.3499,3925.4,3925.3,0.73528]
[1758848944226,0.3499,3925.4,3925.3,0.45828]
[1758848944428,0.3499,3925.4,3925.0,0.45832]
[1758848944628,0.55034954,3925.3,3924.8,0.277]
[1758848944837,0.3499,3925.4,3924.8,0.277]
[1758848945128,0.55034979,3925.3,3924.8,0.277]
[1758848945327,0.3499,3925.4,3925.3,0.45829]
[1758848945731,0.1541,3926.0,3925.9,0.45822]
[1758848945732,0.504,3926.0,3925.9,0.45822]
[1758848946529,1.05425543,3926.0,3925.9,0.45822]
[1758848946730,1.05425543,3926.0,3925.5,5.07786315]
[1758848946931,1.05425543,3926.0,3925.7,0.45825]
[1758848946932,0.3499,3925.8,3925.7,0.45825]
[1758848947136,0.55025543,3925.8,3925.5,0.45826]
[1758848947431,0.3499,3925.6,3925.5,0.45826]
[1758848947732,0.3499,3925.4,3925.3,0.45829]
[1758848948126,0.90015543,3925.4,3925.3,0.45829]
[1758848948729,0.504,3926.0,3925.9,0.45822]
[1758848949130,1.05428817,3926.0,3925.9,0.45822]
[1758848949636,0.90015027,3926.0,3925.9,0.45822]
[1758848949829,0.3499,3926.0,3925.9,0.45822]
[1758848951036,0.3499,3926.4,3926.2,0.45818]
[1758848951241,0.55021125,3926.3,3925.8,0.276]
[1758848951438,0.55021125,3926.2,3926.0,0.74121]
[1758848951738,0.90011125,3926.1,3926.0,0.45821]
[1758848956145,0.504,3926.0,3925.8,0.73423]
[1758848956338,0.3499,3925.9,3925.8,0.73423]
[1758848957240,0.3499,3925.9,3925.8,1.01723]
[1758848957445,0.3499,3926.4,3926.1,0.4582]
[1758848957642,0.3499,3926.4,3925.8,0.559]
[1758848957643,0.504,3926.0,3925.9,0.45822]
[1758848957944,1.05336151,3926.0,3925.9,0.45822]
[1758848958948,1.05336151,3926.0,3924.8,0.276]
[1758848958949,0.3499,3925.9,3924.8,0.276]
[1758848959143,0.3499,3925.4,3924.8,0.276]
[1758848959335,0.3499,3925.2,3924.8,0.276]
[1758848959648,0.3499,3925.0,3924.8,1.01734]
[1758848959846,0.3499,3925.0,3924.9,0.283]
[1758848960043,0.1541,3925.0,3924.8,0.276]
[1758848960238,0.90042127,3924.9,3924.8,0.276]
[1758848961242,0.55052127,3924.9,3924.5,0.45838]
[1758848961444,0.55052127,3924.9,3924.0,0.283]
[1758848961445,0.3499,3924.7,3924.6,0.73437]
[1758848961646,0.3499,3924.7,3924.6,0.65237]
[1758848964647,0.1541,3925.0,3924.9,0.45834]
[1758848964952,1.05460445,3925.0,3924.9,0.45834]
[1758848965150,1.05460445,3925.0,3924.2,40.8]
[1758848965340,0.55060445,3924.9,3924.2,40.8]
[1758848965544,0.55060445,3924.9,3924.0,0.276]
[1758848965545,0.3499,3924.4,3924.0,0.276]
[1758848965744,0.45842,3924.3,3924.0,0.276]
[1758848965940,0.3499,3923.8,3923.4,0.45851]
[1758848966141,0.45846,3923.9,3923.5,0.559]
[1758848966340,0.1541,3924.0,3923.8,0.45846]
[1758848966544,0.45848,3923.8,3923.7,0.276]
[1758848967148,0.3499,3923.8,3923.7,0.276]
[1758848967357,0.3499,3923.8,3923.7,0.559]
[1758848967742,0.3499,3924.4,3923.8,0.283]
[1758848967938,0.3499,3924.2,3923.9,0.283]
[1758848968150,0.5542115,3924.1,3924.0,0.559]
[1758848968448,0.3499,3924.2,3924.1,0.7696]
[1758848968648,0.5849,3924.2,3924.1,0.4866]
[1758848968843,0.8321,3924.2,3924.1,0.2458]
[1758848969150,1.84456638,3924.2,3924.0,0.276]
[1758848969347,1.29053,3924.2,3924.0,0.276]
[1758848970345,0.8321,3924.2,3924.0,0.276]
[1758848970552,0.8582,3924.1,3924.0,0.276]
[1758848972147,0.6097,3924.1,3924.0,0.7543]
[1758848972348,0.35802365,3925.0,3924.0,0.7543]
[1758848972349,0.3572,3924.7,3924.5,0.45838]
[1758848972652,0.3572,3924.6,3924.1,0.272]
[1758848972848,0.1541,3925.0,3924.0,5.34017868]
[1758848972849,0.3572,3924.9,3924.8,0.45834]
[1758848973251,0.91074916,3924.9,3924.8,0.45834]
[1758848973452,0.3572,3924.9,3924.8,0.73034]
[1758848973648,0.3572,3925.2,3925.1,0.4583]
[1758848973847,0.3572,3925.2,3925.1,0.7343]
[1758848974051,0.91072118,3925.2,3925.1,0.7343]
[1758848974845,0.1541,3925.5,3925.3,0.45828]
[1758848974846,0.3572,3925.4,3925.3,0.45828]
[1758848975046,0.1541,3926.0,3925.7,0.45824]
[1758848975249,0.3572,3925.8,3924.9,40.8]
[1758848975445,0.55340182,3925.9,3924.9,40.8]
[1758848975446,0.1452,3925.5,3925.1,0.45832]
[1758848975651,0.5024,3925.5,3925.4,0.45828]
[1758848975856,0.0254,3925.7,3925.4,0.276]
[1758848976055,0.1452,3925.5,3925.4,0.276]
[1758848976560,0.5024,3925.0,3924.9,40.8]
[1758848976751,0.5024,3925.0,3924.9,0.276]
[1758848977463,1.06479297,3925.0,3924.9,0.276]
[1758848977960,0.1452,3924.5,3923.9,40.20045]
[1758848978263,0.5024,3924.0,3923.9,40.20045]
[1758848978461,0.5024,3924.0,3923.9,40.47645]
[1758848979160,0.5024,3924.0,3923.9,40.018]
[1758848979555,0.5024,3924.0,3923.9,0.276]
[1758848980364,0.96084,3924.0,3923.9,0.276]
[1758848980864,0.5024,3924.0,3923.9,0.276]
[1758848981266,1.07345006,3924.0,3923.9,0.276]
[1758848984462,0.1452,3923.5,3923.4,0.73451]
[1758848984665,0.5024,3923.5,3923.4,0.73451]
[1758848984963,0.1452,3924.5,3923.9,0.73046]
[1758848985161,0.1452,3925.5,3924.9,0.45834]
[1758848985363,0.71609973,3925.0,3924.9,0.45834]
[1758848985665,0.3572,3924.4,3924.3,0.4584]
[1758848986158,0.1452,3924.5,3924.1,0.45843]
[1758848986367,0.1452,3924.5,3923.6,0.272]
[1758848986368,0.3572,3924.3,3924.2,0.45841]
[1758848986557,0.93217811,3924.3,3924.2,0.45841]
[1758848987654,0.57497811,3924.3,3924.2,0.73041]
[1758848987858,0.93217811,3924.3,3924.2,0.73441]
[1758848988969,0.93217811,3924.3,3924.2,0.276]
[1758848989169,0.93217811,3924.3,3924.0,0.45844]
[1758848989371,0.3572,3924.1,3924.0,0.45844]
[1758848989571,0.93217811,3924.1,3924.0,0.45844]
[1758848990670,0.3572,3923.9,3923.8,0.45847]
[1758848991073,0.93217811,3923.9,3923.8,0.45847]
[1758848992372,1.14579,3925.2,3923.8,0.45847]
[1758848992373,0.3572,3924.9,3924.8,0.45835]
[1758848992673,0.1452,3925.5,3924.7,0.45836]
[1758848992871,0.4583,3925.3,3924.7,0.45836]
[1758848993069,0.3572,3924.9,3924.8,0.45834]
[1758848993266,0.1452,3925.5,3925.4,0.45828]
[1758848993971,0.5024,3925.5,3925.4,0.45828]
[1758848994574,0.3572,3925.4,3925.3,0.45829]
[1758848996572,0.3572,3925.4,3925.3,0.73029]
[1758848996877,0.3826,3925.7,3925.6,0.45826]
[1758848997980,0.3572,3925.7,3925.6,0.45826]
[1758848998978,0.1452,3926.0,3925.9,0.45822]
[1758848999181,0.5024,3926.0,3925.9,0.45822]
[1758849000473,0.3402,3925.9,3925.8,0.45822]
[1758849000666,0.3402,3925.4,3925.3,0.45828]
[1758849000866,0.4854,3926.0,3925.9,0.45822]
[1758849001177,0.1452,3926.0,3925.7,0.45824]
[1758849001473,0.3402,3925.9,3925.6,0.45825]
[1758849001680,0.4775,3925.5,3925.4,0.45827]
[1758849002670,0.1452,3926.0,3925.4,0.45827]
[1758849002671,0.1452,3926.0,3925.8,0.45823]
[1758849002871,0.3402,3925.9,3925.8,0.45823]
[1758849003074,0.3402,3925.9,3925.0,0.5391]
[1758849003573,0.1452,3926.0,3925.0,0.5391]
[1758849003877,0.60341,3926.0,3925.5,0.45826]
[1758849004079,0.3689,3925.9,3925.5,0.45826]
[1758849004380,0.3689,3925.7,3925.5,0.45826]
[1758849004581,0.93868618,3925.6,3925.5,0.45826]
[1758849005677,0.82724,3924.9,3924.1,0.2625]
[1758849005878,0.1502,3925.0,3924.1,0.45842]
[1758849005879,0.3689,3924.7,3924.1,0.45842]
[1758849006179,0.1502,3925.0,3923.6,0.2625]
[1758849006180,0.3689,3924.4,3924.3,0.45841]
[1758849006579,0.93876804,3924.4,3924.3,0.45841]
[1758849007582,0.56986804,3924.4,3924.1,0.45843]
[1758849007770,0.3689,3924.3,3923.7,0.45847]
[1758849007976,0.3689,3923.9,3923.7,0.45847]
[1758849008385,0.1502,3924.0,3923.7,0.45847]
[1758849008773,0.1502,3924.0,3923.5,0.275]
[1758849008774,0.3689,3924.0,3923.9,0.45845]
[1758849009382,0.5191,3924.5,3924.4,0.4584]
[1758849009778,0.3689,3924.4,3923.8,0.45846]
[1758849009983,0.3689,3924.2,3923.5,0.5375]
[1758849010285,0.5191,3924.5,3924.3,0.4584]
[1758849010470,0.94219912,3924.4,3924.3,0.4584]
[1758849011884,0.57329912,3924.4,3923.9,0.45845]
[1758849012077,0.57329912,3924.3,3924.1,0.45843]
[1758849012277,0.3689,3924.2,3924.1,0.45843]
[1758849013488,0.3689,3924.2,3924.1,0.72093]
[1758849014185,0.3689,3924.2,3924.1,0.45843]
[1758849014583,0.5191,3924.5,3924.4,0.4584]
[1758849014885,1.0926509,3924.5,3924.4,0.4584]
[1758849015591,0.3689,3924.4,3924.1,0.275]
[1758849015782,0.3689,3924.2,3924.1,0.275]
[1758849016185,0.3689,3924.2,3924.1,0.73342]
[1758849016387,0.3689,3924.2,3924.1,0.275]
[1758849018190,0.94132793,3924.2,3924.1,0.275]
[1758849018491,0.5191,3924.0,3923.7,0.45847]
[1758849018685,0.3689,3923.8,3923.7,0.45847]
[1758849018880,0.1502,3924.0,3923.4,0.275]
[1758849018881,0.1502,3923.5,3923.4,0.275]
[1758849019178,0.5191,3923.5,3923.4,0.275]
[1758849019378,0.5191,3923.5,3922.3,39.739]
[1758849019379,0.5191,3923.0,3922.7,40.8]
[1758849019590,0.5191,3923.0,3922.3,0.45864]
[1758849019782,1.09157918,3923.0,3922.5,0.275]
[1758849019982,1.09157918,3923.0,3922.6,0.4586]
[1758849020892,1.09157918,3923.0,3922.5,0.275]
[1758849021091,6.09157918,3923.0,3922.5,0.275]
[1758849021590,0.45869,3921.9,3921.0,0.45879]
[1758849021779,0.3689,3922.4,3921.0,0.1253]
[1758849021780,0.3689,3921.7,3921.0,0.1253]
[1758849021981,0.1502,3922.5,3921.3,0.288]
[1758849021982,0.3689,3922.1,3921.3,0.288]
[1758849022286,0.3689,3922.7,3922.5,0.45861]
[1758849022489,0.3689,3923.4,3922.8,0.288]
[1758849022688,0.1502,3924.0,3923.2,0.45854]
[1758849022689,0.60865,3924.0,3923.2,0.45854]
[1758849022885,0.3689,3923.4,3923.2,0.45854]
[1758849023284,0.3689,3923.9,3923.5,0.4585]
[1758849023591,0.3689,3923.7,3923.6,0.288]
[1758849024085,0.3689,3923.7,3923.2,0.275]
[1758849024086,0.1502,3923.5,3923.2,0.275]
[1758849024288,0.3689,3923.4,3923.2,0.275]
[1758849024491,0.1502,3923.5,3923.2,0.73353]
[1758849024888,0.3689,3923.4,3923.2,0.73353]
[1758849025092,0.3689,3923.3,3923.2,0.73353]
[1758849025296,0.3689,3923.3,3923.2,0.275]
[1758849025688,0.0254,3923.4,3923.0,0.73356]
[1758849026091,0.3689,3923.3,3923.1,0.45854]
[1758849026289,0.0254,3923.4,3923.1,0.45854]
[1758849026488,0.3689,3923.3,3922.8,0.45857]
[1758849026688,0.1502,3923.0,3922.8,0.73357]
[1758849026884,0.0254,3923.4,3922.8,0.563]
[1758849027093,0.0254,3923.4,3923.3,0.74653]
[1758849027406,0.3689,3924.2,3924.1,0.45843]
[1758849027793,0.1502,3925.0,3923.8,40.8]
[1758849028095,0.3689,3923.9,3923.8,40.8]
[1758849028297,0.3689,3923.9,3923.7,0.275]
[1758849028486,0.3689,3923.9,3923.8,0.45847]
[1758849028790,0.1502,3924.0,3923.7,0.275]
[1758849028997,0.1502,3924.0,3923.6,0.45849]
[1758849029295,0.3689,3923.9,3923.6,0.45849]
[1758849029496,0.3689,3923.9,3923.8,0.45847]
[1758849029892,0.3689,3923.9,3923.6,0.45849]
[1758849030091,0.3406,3923.9,3923.6,41.25849]
[1758849030397,0.1502,3924.0,3923.6,41.25849]
[1758849030601,0.1502,3924.0,3923.6,40.8]
[1758849031395,0.3406,3923.8,3923.4,0.73351]
[1758849031595,0.1395,3923.5,3923.4,0.275]
[1758849031793,0.4801,3923.5,3923.4,0.275]
[1758849032296,0.4801,3923.5,3923.3,40.8]
[1758849032297,0.3406,3923.4,3923.2,0.275]
[1758849033386,0.1395,3923.5,3923.2,0.275]
[1758849033594,0.3406,3923.3,3923.2,0.275]
[1758849034904,0.3406,3923.5,3923.3,0.73632]
[1758849035097,0.1502,3924.0,3923.7,0.45847]
[1758849035303,0.57272435,3923.9,3923.7,1.01127]
[1758849035493,0.91332435,3923.8,3923.7,0.73347]
[1758849035690,0.91332435,3923.8,3923.3,0.2778]
[1758849035691,0.57272435,3923.8,3922.9,0.45857]
[1758849035896,0.3406,3923.4,3922.8,40.8]
[1758849036097,0.3406,3923.2,3923.0,0.2778]
[1758849036299,0.3406,3923.2,3923.0,0.73635]
[1758849036501,0.3406,3923.4,3923.0,0.73635]
[1758849036704,0.3406,3923.2,3922.8,41.25858]
[1758849036895,0.1395,3923.5,3922.8,41.25858]
[1758849036896,0.3406,3923.4,3922.9,0.45856]
[1758849037100,0.3406,3923.2,3922.9,0.2778]
[1758849037405,0.3406,3923.2,3923.1,0.45855]
[1758849037801,0.9137471,3923.2,3923.1,0.45855]
[1758849038106,0.4801,3923.5,3923.4,0.45851]
[1758849038297,1.05319833,3923.5,3923.4,0.45851]
[1758849038497,0.57309833,3923.5,3923.4,0.73631]
[1758849038802,0.57307346,3923.5,3923.4,0.7363]
[1758849039000,0.91367346,3923.5,3923.4,0.4585]
[1758849039199,0.1502,3924.5,3923.4,5.0]
[1758849039200,0.366,3924.4,3923.4,5.0]
[1758849039402,0.0254,3924.4,3924.3,5.53756315]
[1758849039607,0.0254,3924.4,3924.3,5.81256315]
[1758849039905,0.1395,3925.5,3925.2,0.45826]
[1758849040105,0.59773,3925.5,3925.0,0.275]
[1758849040404,0.3406,3925.4,3925.0,0.73328]
[1758849040804,0.1395,3925.5,3925.0,0.73328]